fUST/lending_fUST_20241206
["ID","MTS","AMOUNT","RATE_DAILY","PERIOD"]
[344451164,1733482254360,-10287.15,0.00030136,7]
[344451165,1733482254370,-988.19,0.00030136,7]
[344451166,1733482254379,-10287.15,0.00030136,7]
[344451167,1733482254388,-988.19,0.00030136,7]
[344451168,1733482254398,-988.19,0.00030136,7]
[344451169,1733482254408,-10287.1625,0.00030136,7]
[344451170,1733482254417,-988.19,0.00030136,7]
[344451171,1733482254427,-988.19,0.00030136,7]
[344451172,1733482254436,-988.19,0.00030136,7]
[344451173,1733482254446,-988.19,0.00030136,7]
[344451174,1733482254455,-988.19,0.00030136,7]
[344451175,1733482254465,-988.19,0.00030136,7]
[344451176,1733482254474,-500.0,0.00030136,7]
[344451177,1733482254484,-500.0,0.00030136,7]
[344451178,1733482254493,-988.19,0.00030136,7]
[344451179,1733482254503,-500.0,0.00030136,7]
[344451180,1733482254513,-988.19,0.00030136,7]
[344451181,1733482254523,-500.0,0.00030136,7]
[344451182,1733482254532,-500.0,0.00030136,7]
[344451183,1733482254542,-281.54,0.00030136,7]
[344451184,1733482254551,-988.19,0.00030136,7]
[344451185,1733482254561,-500.0,0.00030136,7]
[344451186,1733482254570,-500.0,0.00030136,7]
[344451187,1733482254579,-988.19,0.00030136,7]
[344451188,1733482254589,-500.0,0.00030136,7]
[344451189,1733482254598,-988.19,0.00030136,7]
[344451190,1733482254607,-500.0,0.00030136,7]
[344451191,1733482254617,-500.0,0.00030136,7]
[344451192,1733482254626,-988.19,0.00030136,7]
[344451193,1733482254637,-500.0,0.00030136,7]
[344451194,1733482254648,-500.0,0.00030136,7]
[344451195,1733482254658,-988.19,0.00030136,7]
[344451196,1733482254667,-500.0,0.00030136,7]
[344451197,1733482254677,-500.0,0.00030136,7]
[344451198,1733482254686,-500.0,0.00030136,7]
[344451199,1733482254696,-988.19,0.00030136,7]
[344451200,1733482254711,-500.0,0.00030136,7]
[344451201,1733482254725,-500.0,0.00030136,7]
[344451202,1733482254735,-500.0,0.00030136,7]
[344451203,1733482254744,-988.19,0.00030136,7]
[344451204,1733482254755,-500.0,0.00030136,7]
[344451205,1733482254768,-500.0,0.00030136,7]
[344451206,1733482254778,-988.19,0.00030136,7]
[344451207,1733482254787,-500.0,0.00030136,7]
[344451208,1733482254796,-500.0,0.00030136,7]
[344451209,1733482254805,-500.0,0.00030136,7]
[344451210,1733482254815,-988.19,0.00030136,7]
[344451211,1733482254824,-500.0,0.00030136,7]
[344451212,1733482254833,-500.0,0.00030136,7]
[344451213,1733482254842,-500.0,0.00030136,7]
[344451214,1733482254852,-988.19,0.00030136,7]
[344451215,1733482254862,-508.68032757,0.00030136,7]
[344451216,1733482254872,-500.0,0.00030136,7]
[344451217,1733482254882,-500.0,0.00030136,7]
[344451218,1733482254891,-988.19,0.00030136,7]
[344451219,1733482254901,-500.0,0.00030136,7]
[344451220,1733482254911,-514.1467802,0.00030136,7]
[344451221,1733482254920,-988.19,0.00030136,7]
[344451222,1733482254930,-500.0,0.00030136,7]
[344451223,1733482254940,-988.29116212,0.00030136,7]
[344451224,1733482254950,-500.0,0.00030136,7]
[344451225,1733482254960,-481.48216798,0.00030136,7]
[344451226,1733482254969,-500.0,0.00030136,7]
[344451227,1733482254979,-500.0,0.00030136,7]
[344451228,1733482254988,-256.84773022,0.00030136,7]
[344451229,1733482254998,-500.0,0.00030136,7]
[344451230,1733482255011,-500.0,0.00030136,7]
[344451231,1733482255021,-500.0,0.00030136,7]
[344451232,1733482255031,-500.0,0.00030136,7]
[344451233,1733482255124,-500.0,0.00030136,7]
[344451234,1733482255137,-500.0,0.00030136,7]
[344451235,1733482255147,-500.0,0.00030136,7]
[344451236,1733482255157,-500.0,0.00030136,7]
[344451237,1733482255166,-500.0,0.00030136,7]
[344451238,1733482255176,-500.0,0.00030136,7]
[344451239,1733482255185,-195.61541379,0.00030136,7]
[344451240,1733482255195,-500.0,0.00030136,7]
[344451241,1733482255205,-500.0,0.00030136,7]
[344451242,1733482255214,-500.0,0.00030136,7]
[344451243,1733482255224,-500.0,0.00030136,7]
[344451244,1733482255233,-500.0,0.00030136,7]
[344451245,1733482255243,-500.0,0.00030136,7]
[344451246,1733482255252,-500.99984099,0.00030136,7]
[344451247,1733482255264,-500.0,0.00030136,7]
[344451248,1733482255273,-500.0,0.00030136,7]
[344451249,1733482255282,-500.0,0.00030136,7]
[344451250,1733482255292,-500.0,0.00030136,7]
[344451251,1733482255301,-500.0,0.00030136,7]
[344451252,1733482255310,-500.0,0.00030136,7]
[344451253,1733482255319,-500.0,0.00030136,7]
[344451254,1733482255329,-500.0,0.00030136,7]
[344451255,1733482255338,-500.0,0.00030136,7]
[344451256,1733482255348,-500.0,0.00030136,7]
[344451257,1733482255357,-500.0,0.00030136,7]
[344451258,1733482255366,-500.0,0.00030136,7]
[344451259,1733482255376,-502.00871913,0.00030136,7]
[344451260,1733482255385,-500.0,0.00030136,7]
[344451261,1733482255395,-500.0,0.00030136,7]
[344451262,1733482255404,-500.0,0.00030136,7]
[344451263,1733482255413,-500.0,0.00030136,7]
[344451264,1733482255423,-500.0,0.00030136,7]
[344451265,1733482255432,-500.0,0.00030136,7]
[344451266,1733482255442,-500.0,0.00030136,7]
[344451267,1733482255451,-500.0,0.00030136,7]
[344451268,1733482255461,-199.01062543,0.00030136,7]
[344451269,1733482255470,-500.0,0.00030136,7]
[344451270,1733482255479,-500.0,0.00030136,7]
[344451271,1733482255489,-500.0,0.00030136,7]
[344451272,1733482255498,-500.0,0.00030136,7]
[344451273,1733482255509,-632.71765218,0.00030136,7]
[344451274,1733482255518,-500.0,0.00030136,7]
[344451275,1733482255528,-504.01541209,0.00030136,7]
[344451276,1733482255537,-500.0,0.00030136,7]
[344451277,1733482255547,-500.0,0.00030136,7]
[344451278,1733482255556,-500.0,0.00030136,7]
[344451279,1733482255566,-500.0,0.00030136,7]
[344451280,1733482255575,-500.0,0.00030136,7]
[344451281,1733482255584,-563.17567865,0.00030136,7]
[344451282,1733482255593,-150.12,0.00030136,7]
[344451283,1733482255603,-151.0,0.00030136,7]
[344451284,1733482255612,-500.0,0.00030136,7]
[344451285,1733482255622,-150.12,0.00030136,7]
[344451286,1733482255631,-500.0,0.00030136,7]
[344451287,1733482255645,-150.12,0.00030136,7]
[344451288,1733482255657,-500.0,0.00030136,7]
[344451289,1733482255667,-150.12,0.00030136,2]
[344451290,1733482255677,-500.0,0.00030136,7]
[344451291,1733482255686,-258.49543892,0.00030136,7]
[344451292,1733482255696,-150.30608059,0.00030136,7]
[344451293,1733482255705,-500.0,0.00030136,7]
[344451294,1733482255715,-501.07423014,0.00030136,7]
[344451295,1733482255725,-500.0,0.00030136,7]
[344451296,1733482255734,-560.52230938,0.00030136,7]
[344451297,1733482255743,-500.0,0.00030136,7]
[344451298,1733482255753,-500.0,0.00030136,7]
[344451299,1733482255763,-502.02551897,0.00030136,7]
[344451300,1733482255772,-500.0,0.00030136,7]
[344451301,1733482255782,-500.0,0.00030136,7]
[344451302,1733482255791,-500.0,0.00030136,7]
[344451303,1733482255800,-500.0,0.00030136,7]
[344451304,1733482255809,-500.0,0.00030136,7]
[344451305,1733482255819,-500.0,0.00030136,7]
[344451306,1733482255828,-500.0,0.00030136,7]
[344451307,1733482255837,-500.0,0.00030136,7]
[344451308,1733482255847,-500.0,0.00030136,7]
[344451309,1733482255856,-500.0,0.00030136,7]
[344451310,1733482255866,-500.0,0.00030136,7]
[344451311,1733482255877,-500.0,0.00030136,7]
[344451312,1733482255887,-513.67119185,0.00030136,7]
[344451313,1733482255896,-500.0,0.00030136,7]
[344451314,1733482255906,-500.0,0.00030136,7]
[344451315,1733482255915,-500.0,0.00030136,7]
[344451316,1733482255925,-617.51524889,0.00030136,7]
[344451317,1733482255934,-282.71418967,0.00030136,7]
[344451318,1733482255943,-500.0,0.00030136,7]
[344451319,1733482255953,-500.0,0.00030136,7]
[344451320,1733482255963,-500.0,0.00030136,7]
[344451321,1733482255973,-500.0,0.00030136,7]
[344451322,1733482255982,-482.75612956,0.00030136,7]
[344451323,1733482255992,-500.0,0.00030136,7]
[344451324,1733482256002,-500.0,0.00030136,7]
[344451325,1733482256012,-500.0,0.00030136,7]
[344451326,1733482256022,-500.0,0.00030136,7]
[344451327,1733482256031,-500.0,0.00030136,7]
[344451328,1733482256040,-500.0,0.00030136,7]
[344451329,1733482256049,-500.0,0.00030136,7]
[344451330,1733482256058,-500.0,0.00030136,7]
[344451331,1733482256068,-500.0,0.00030136,7]
[344451332,1733482256077,-500.0,0.00030136,7]
[344451333,1733482256087,-500.0,0.00030136,7]
[344451334,1733482256096,-500.0,0.00030136,7]
[344451335,1733482256105,-500.0,0.00030136,7]
[344451336,1733482256115,-500.0,0.00030136,7]
[344451337,1733482256125,-412.2438536,0.00030136,7]
[344451338,1733482256134,-500.0,0.00030136,7]
[344451339,1733482256144,-349.34989569,0.00030136,7]
[344451340,1733482256152,-853.06,0.00030136,7]
[344451341,1733482256163,-853.06,0.00030136,7]
[344451342,1733482256172,-853.06,0.00030136,7]
[344451343,1733482256182,-853.06,0.00030136,7]
[344451344,1733482256191,-853.06,0.00030136,7]
[344451345,1733482256201,-853.06,0.00030136,7]
[344451346,1733482256211,-853.06,0.00030136,7]
[344451347,1733482256220,-853.06,0.00030136,7]
[344451348,1733482256230,-853.06,0.00030136,7]
[344451349,1733482256239,-500.0,0.00030136,7]
[344451350,1733482256248,-853.06,0.00030136,7]
[344451351,1733482256258,-500.0,0.00030136,7]
[344451352,1733482256267,-853.06,0.00030136,7]
[344451353,1733482256276,-500.0,0.00030136,7]
[344451354,1733482256285,-853.06,0.00030136,7]
[344451355,1733482256293,-500.0,0.00030136,7]
[344451356,1733482256302,-853.06,0.00030136,7]
[344451357,1733482256311,-500.0,0.00030136,7]
[344451358,1733482256321,-853.06,0.00030136,7]
[344451359,1733482256330,-500.0,0.00030136,7]
[344451360,1733482256339,-500.0,0.00030136,7]
[344451361,1733482256349,-853.06,0.00030136,7]
[344451362,1733482256358,-500.0,0.00030136,7]
[344451363,1733482256367,-500.0,0.00030136,7]
[344451364,1733482256377,-853.06,0.00030136,7]
[344451365,1733482256387,-500.0,0.00030136,7]
[344451366,1733482256396,-500.0,0.00030136,7]
[344451367,1733482256405,-853.06,0.00030136,7]
[344451368,1733482256414,-500.0,0.00030136,7]
[344451369,1733482256423,-853.06,0.00030136,7]
[344451370,1733482256432,-500.0,0.00030136,7]
[344451371,1733482256441,-150.12,0.00030136,7]
[344451372,1733482256450,-500.0,0.00030136,7]
[344451373,1733482256459,-500.0,0.00030136,7]
[344451374,1733482256468,-500.0,0.00030136,7]
[344451375,1733482256477,-853.06,0.00030136,7]
[344451376,1733482256486,-500.0,0.00030136,7]
[344451377,1733482256495,-500.0,0.00030136,7]
[344451378,1733482256504,-853.06,0.00030136,7]
[344451379,1733482256514,-500.0,0.00030136,7]
[344451380,1733482256523,-150.12,0.00030136,2]
[344451381,1733482256532,-500.0,0.00030136,7]
[344451382,1733482256542,-853.06,0.00030136,7]
[344451383,1733482256551,-500.0,0.00030136,7]
[344451384,1733482256560,-500.0,0.00030136,7]
[344451385,1733482256569,-853.06,0.00030136,7]
[344451386,1733482256578,-500.0,0.00030136,7]
[344451387,1733482256587,-500.0,0.00030136,7]
[344451388,1733482256596,-500.0,0.00030136,7]
[344451389,1733482256605,-853.06,0.00030136,7]
[344451390,1733482256615,-500.0,0.00030136,7]
[344451391,1733482256624,-500.0,0.00030136,7]
[344451392,1733482256633,-853.15985222,0.00030136,7]
[344451393,1733482256645,-500.0,0.00030136,7]
[344451394,1733482256654,-500.0,0.00030136,7]
[344451395,1733482256663,-500.0,0.00030136,7]
[344451396,1733482256673,-500.0,0.00030136,7]
[344451397,1733482256683,-500.0,0.00030136,7]
[344451398,1733482256693,-186.29606919,0.00030136,7]
[344451399,1733482256702,-500.0,0.00030136,7]
[344451400,1733482256712,-500.0,0.00030136,7]
[344451401,1733482256723,-568.56946817,0.00030136,7]
[344451402,1733482256732,-500.0,0.00030136,2]
[344451403,1733482256741,-500.0,0.00030136,2]
[344451404,1733482256750,-500.0,0.00030136,2]
[344451405,1733482256761,-500.0,0.00030136,2]
[344451406,1733482256770,-500.0,0.00030136,2]
[344451407,1733482256779,-500.0,0.00030136,2]
[344451408,1733482256788,-500.0,0.00030136,7]
[344451409,1733482256797,-500.0,0.00030136,2]
[344451410,1733482256807,-500.0,0.00030136,2]
[344451411,1733482256885,-500.0,0.00030136,7]
[344451412,1733482256895,-500.0,0.00030136,2]
[344451413,1733482256905,-500.0,0.00030136,7]
[344451414,1733482256914,-500.0,0.00030136,2]
[344451415,1733482256923,-500.0,0.00030136,7]
[344451416,1733482256933,-500.0,0.00030136,2]
[344451417,1733482256943,-500.0,0.00030136,7]
[344451418,1733482256953,-500.0,0.00030136,2]
[344451419,1733482256963,-500.0,0.00030136,7]
[344451420,1733482256973,-500.0,0.00030136,2]
[344451421,1733482256983,-500.0,0.00030136,2]
[344451422,1733482256992,-500.0,0.00030136,7]
[344451423,1733482257002,-500.0,0.00030136,2]
[344451424,1733482257017,-500.0,0.00030136,7]
[344451425,1733482257026,-500.0,0.00030136,2]
[344451426,1733482257036,-500.0,0.00030136,7]
[344451427,1733482257045,-500.0,0.00030136,2]
[344451428,1733482257055,-500.0,0.00030136,7]
[344451429,1733482257064,-500.0,0.00030136,7]
[344451430,1733482257074,-500.0,0.00030136,2]
[344451431,1733482257083,-500.0,0.00030136,7]
[344451432,1733482257093,-500.0,0.00030136,7]
[344451433,1733482257102,-500.0,0.00030136,2]
[344451434,1733482257112,-500.0,0.00030136,7]
[344451435,1733482257121,-500.0,0.00030136,7]
[344451436,1733482257130,-506.80125671,0.00030136,2]
[344451437,1733482257140,-500.0,0.00030136,7]
[344451438,1733482257149,-500.0,0.00030136,7]
[344451439,1733482257158,-500.0,0.00030136,7]
[344451440,1733482257167,-500.0,0.00030136,7]
[344451441,1733482257177,-500.0,0.00030136,7]
[344451442,1733482257186,-500.0,0.00030136,7]
[344451443,1733482257195,-500.0,0.00030136,7]
[344451444,1733482257206,-500.0,0.00030136,7]
[344451445,1733482257215,-500.0,0.00030136,7]
[344451446,1733482257225,-500.0,0.00030136,7]
[344451447,1733482257235,-500.0,0.00030136,7]
[344451448,1733482257244,-500.0,0.00030136,7]
[344451449,1733482257254,-500.0,0.00030136,7]
[344451450,1733482257267,-556.10436483,0.00030136,7]
[344451451,1733482257277,-500.0,0.00030136,7]
[344451452,1733482257286,-500.0,0.00030136,7]
[344451453,1733482257295,-500.0,0.00030136,7]
[344451454,1733482257304,-500.0,0.00030136,7]
[344451455,1733482257313,-500.0,0.00030136,7]
[344451456,1733482257322,-500.0,0.00030136,7]
[344451457,1733482257331,-500.0,0.00030136,7]
[344451458,1733482257341,-243.13695904,0.00030136,7]
[344451459,1733482257350,-500.0,0.00030136,7]
[344451460,1733482257359,-4001.12,0.00030136,7]
[344451461,1733482257368,-500.0,0.00030136,7]
[344451462,1733482257377,-500.0,0.00030136,7]
[344451463,1733482257386,-794.6,0.00030136,7]
[344451464,1733482257395,-500.0,0.00030136,7]
[344451465,1733482257404,-4001.12,0.00030136,7]
[344451466,1733482257414,-794.6,0.00030136,7]
[344451467,1733482257424,-4001.12,0.00030136,7]
[344451468,1733482257433,-500.0,0.00030136,7]
[344451469,1733482257443,-1246.43205773,0.00030136,7]
[344451471,1733482736063,165.615715,0.00013973,2]
[344451531,1733483426264,165.99425,0.00013973,2]
[344451544,1733483432295,-419.578,0.0002863,2]
[344451545,1733483432304,-80.422,0.00029681,7]
[344451576,1733483438481,-70.578,0.00029681,7]
[344451577,1733483438492,-3000.0,0.0003,2]
[344451578,1733483438503,-400.0,0.00030009,2]
[344451579,1733483438512,-3000.0,0.0003001,2]
[344451580,1733483438522,-3000.0,0.0003002,2]
[344451581,1733483438532,-3000.0,0.0003003,2]
[344451582,1733483438541,-151.0,0.00030036,7]
[344451583,1733483438556,-3000.0,0.0003004,2]
[344451584,1733483438566,-3000.0,0.0003005,2]
[344451585,1733483438576,-3000.0,0.0003006,2]
[344451586,1733483438587,-3000.0,0.0003007,2]
[344451587,1733483438596,-169.226,0.00030076,2]
[344451588,1733483438606,-3000.0,0.0003008,2]
[344451589,1733483438616,-3000.0,0.0003009,2]
[344451590,1733483438627,-3000.0,0.000301,2]
[344451591,1733483438636,-542.0,0.000301,14]
[344451592,1733483438646,-3000.0,0.0003011,2]
[344451593,1733483438656,-150.173,0.00030117,7]
[344451594,1733483438666,-3200.0,0.00030117,2]
[344451595,1733483438676,-3000.0,0.0003012,2]
[344451596,1733483438686,-3000.0,0.0003013,3]
[344451597,1733483438695,-390.67482419,0.00030135,2]
[344451598,1733483438706,-500.0,0.00030135,3]
[344451599,1733483438715,-3449.05,0.00030136,7]
[344451600,1733483438725,-3449.05,0.00030136,7]
[344451601,1733483438735,-3449.05,0.00030136,7]
[344451602,1733483438744,-3449.05,0.00030136,7]
[344451603,1733483438754,-3449.05,0.00030136,7]
[344451604,1733483438763,-3449.05,0.00030136,7]
[344451605,1733483438773,-3449.05,0.00030136,7]
[344451606,1733483438783,-3449.05,0.00030136,7]
[344451607,1733483438793,-3449.05,0.00030136,7]
[344451608,1733483438805,-150.12,0.00030136,7]
[344451609,1733483438814,-1245.53,0.00030136,7]
[344451610,1733483438823,-1245.53,0.00030136,7]
[344451611,1733483438833,-1245.53,0.00030136,7]
[344451612,1733483438842,-1245.53,0.00030136,7]
[344451613,1733483438852,-1245.53,0.00030136,7]
[344451614,1733483438862,-1245.53,0.00030136,7]
[344451615,1733483438873,-1245.53,0.00030136,7]
[344451616,1733483438883,-150.12,0.00030136,7]
[344451617,1733483438893,-1245.53,0.00030136,7]
[344451618,1733483438904,-500.0,0.00030136,7]
[344451619,1733483438914,-500.0,0.00030136,7]
[344451620,1733483438924,-500.0,0.00030136,7]
[344451621,1733483438935,-563.90396636,0.00030136,7]
[344451622,1733483438944,-150.12,0.00030136,7]
[344451623,1733483438953,-150.12,0.00030136,7]
[344451624,1733483438963,-150.12,0.00030136,7]
[344451625,1733483438972,-199.64,0.00030136,7]
[344451626,1733483438982,-151.33861021,0.00030136,7]
[344451627,1733483438992,-500.0,0.00030136,7]
[344451628,1733483439002,-500.0,0.00030136,7]
[344451629,1733483439011,-500.0,0.00030136,7]
[344451630,1733483439023,-500.0,0.00030136,7]
[344451631,1733483439033,-500.0,0.00030136,7]
[344451632,1733483439043,-500.0,0.00030136,7]
[344451633,1733483439054,-500.0,0.00030136,7]
[344451634,1733483439064,-279.92399293,0.00030136,7]
[344451635,1733483439073,-500.0,0.00030136,7]
[344451636,1733483439082,-526.86103616,0.00030136,7]
[344451637,1733483439092,-500.0,0.00030136,7]
[344451638,1733483439102,-500.0,0.00030136,7]
[344451639,1733483439111,-500.0,0.00030136,7]
[344451640,1733483439120,-500.0,0.00030136,7]
[344451641,1733483439130,-500.0,0.00030136,7]
[344451642,1733483439139,-728.38,0.00030136,7]
[344451643,1733483439148,-728.38,0.00030136,7]
[344451644,1733483439158,-728.38,0.00030136,7]
[344451645,1733483439167,-728.38,0.00030136,7]
[344451646,1733483439176,-339.7122994,0.00030136,7]
[344451647,1733483439186,-728.38,0.00030136,7]
[344451648,1733483439197,-728.38,0.00030136,7]
[344451649,1733483439206,-728.38,0.00030136,7]
[344451650,1733483439215,-728.38,0.00030136,7]
[344451651,1733483439224,-500.0,0.00030136,2]
[344451652,1733483439234,-511.59901964,0.00030136,7]
[344451653,1733483439243,-3000.0,0.0003014,3]
[344451654,1733483439252,-3449.05,0.00030143,7]
[344451655,1733483439262,-500.0,0.00030149,7]
[344451656,1733483439271,-3000.0,0.0003015,3]
[344451657,1733483439280,-1245.53,0.00030159,7]
[344451658,1733483439290,-3000.0,0.0003016,3]
[344451659,1733483439301,-3000.0,0.0003017,3]
[344451660,1733483439311,-348.0520567,0.00030173,5]
[344451661,1733483439320,-3000.0,0.0003018,3]
[344451662,1733483439329,-728.38,0.00030188,7]
[344451663,1733483439339,-3449.05,0.00030189,7]
[344451664,1733483439348,-3000.0,0.0003019,3]
[344451665,1733483439358,-500.0,0.00030199,7]
[344451666,1733483439368,-3000.0,0.000302,3]
[344451667,1733483439377,-1245.53,0.00030209,7]
[344451668,1733483439387,-3000.0,0.0003021,3]
[344451669,1733483439397,-3000.0,0.0003022,3]
[344451670,1733483439407,-3000.0,0.0003023,3]
[344451671,1733483439416,-728.38,0.00030239,7]
[344451672,1733483439425,-3000.0,0.0003024,3]
[344451673,1733483439435,-3449.05,0.00030249,7]
[344451674,1733483439446,-500.0,0.00030249,7]
[344451675,1733483439456,-3000.0,0.0003025,3]
[344451676,1733483439466,-1245.53,0.00030259,7]
[344451677,1733483439475,-3000.0,0.0003026,3]
[344451678,1733483439486,-3000.0,0.0003027,3]
[344451679,1733483439495,-3000.0,0.0003028,3]
[344451680,1733483439506,-3449.05,0.00030289,7]
[344451681,1733483439516,-500.0,0.00030289,7]
[344451682,1733483439525,-728.38,0.00030289,7]
[344451683,1733483439535,-5062.834377,0.0003029,3]
[344451684,1733483439545,-1245.53,0.00030339,7]
[344451685,1733483439556,-151.0,0.0003039,7]
[344451686,1733483439566,-199.76,0.0003041,7]
[344451687,1733483439576,-261.492598,0.0003041,7]
[344451688,1733483439585,-150.12,0.0003041,7]
[344451689,1733483439595,-199.67,0.0003041,7]
[344451690,1733483439604,-150.12,0.0003041,7]
[344451691,1733483439614,-806.87017525,0.0003041,2]
[344451692,1733483439623,-157.20565668,0.00030416,30]
[344451693,1733483439632,-1245.53,0.00030498,7]
[344451694,1733483439642,-500.0,0.00030498,7]
[344451695,1733483439651,-500.0,0.00030498,7]
[344451696,1733483439664,-500.0,0.00030498,7]
[344451697,1733483439673,-728.38,0.00030498,7]
[344451698,1733483439687,-219.13665611,0.00030499,2]
[344451699,1733483439696,-229.55361862,0.00030499,2]
[344451700,1733483439706,-500.0,0.00030499,2]
[344451701,1733483439715,-246.97533114,0.00030499,2]
[344451702,1733483439727,-199.63688067,0.00030499,2]
[344451703,1733483439737,-500.0,0.00030499,2]
[344451704,1733483439747,-227.71962599,0.00030499,2]
[344451705,1733483439757,-153.39565927,0.00030499,2]
[344451707,1733483439767,-3449.05,0.00030499,7]
[344451709,1733483439777,-3449.05,0.00030499,7]
[344451711,1733483439787,-3449.05,0.00030499,7]
[344451712,1733483439798,-3449.05,0.00030499,7]
[344451713,1733483439807,-3449.05,0.00030499,7]
[344451714,1733483439816,-3449.05,0.00030499,7]
[344451715,1733483439826,-3449.05,0.00030499,7]
[344451716,1733483439836,-3449.05,0.00030499,7]
[344451717,1733483439846,-3449.05,0.00030499,7]
[344451718,1733483439855,-3449.05,0.00030499,7]
[344451719,1733483439865,-3449.13596345,0.00030499,7]
[344451720,1733483439874,-1245.53,0.00030499,7]
[344451721,1733483439883,-1245.53,0.00030499,7]
[344451722,1733483439893,-1245.53,0.00030499,7]
[344451723,1733483439903,-1245.53,0.00030499,7]
[344451724,1733483439912,-1245.53,0.00030499,7]
[344451725,1733483439922,-1245.53,0.00030499,7]
[344451726,1733483439931,-1245.53,0.00030499,7]
[344451727,1733483439940,-1245.53,0.00030499,7]
[344451728,1733483439950,-1245.53,0.00030499,7]
[344451729,1733483439959,-1245.53,0.00030499,7]
[344451730,1733483439969,-1245.66891044,0.00030499,7]
[344451731,1733483439978,-500.0,0.00030499,7]
[344451732,1733483439987,-500.0,0.00030499,7]
[344451733,1733483439997,-500.0,0.00030499,7]
[344451734,1733483440007,-500.0,0.00030499,7]
[344451735,1733483440020,-235.8436924,0.00030499,7]
[344451736,1733483440033,-728.38,0.00030499,7]
[344451737,1733483440043,-728.38,0.00030499,7]
[344451738,1733483440054,-728.38,0.00030499,7]
[344451739,1733483440064,-728.38,0.00030499,7]
[344451741,1733483440074,-728.38,0.00030499,7]
[344451742,1733483440083,-728.38,0.00030499,7]
[344451744,1733483440092,-728.38,0.00030499,7]
[344451746,1733483440109,-728.38,0.00030499,7]
[344451747,1733483440120,-728.38,0.00030499,7]
[344451748,1733483440130,-728.38,0.00030499,7]
[344451749,1733483440141,-728.38,0.00030499,7]
[344451750,1733483440150,-728.54161166,0.00030499,7]
[344451751,1733483440160,-40224.55165496,0.000305,7]
[344451753,1733483440173,-40373.99153383,0.000305,7]
[344451754,1733483440186,-4058.99212626,0.000305,7]
[344451755,1733483440198,-93087.38172264,0.000305,7]
[344451757,1733483440380,-500.0,0.00030136,2]
[344451758,1733483440391,-186.11246764,0.00030136,2]
[344451759,1733483440402,-48435.88753236,0.000305,7]
[344451760,1733483440415,-8299.7803487,0.000305,7]
[344451761,1733483440427,-3367.03604392,0.000305,7]
[344451772,1733483443429,-332.572428,0.000305,7]
[344451773,1733483443460,-33937.74995523,0.000305,7]
[344451782,1733483446385,-4383.82809,0.000305,7]
[344451783,1733483446396,-3460.55698657,0.000305,7]
[344451784,1733483446408,-4038.61,0.000305,7]
[344451785,1733483446419,-19636.0,0.000305,7]
[344452094,1733483520447,500.0,0.00024372,2]
[344452096,1733483531081,500.0,0.00025591,2]
[344452097,1733483541749,500.0,0.00023153,2]
[344452098,1733484017235,166.228499,0.00013973,2]
[344452104,1733484405104,-199.54212581,0.00021996,2]
[344452117,1733484563077,-500.0,0.00023141,2]